bitfinex/quotes_SOLUSD_20240922
["timestamp","ask_amount","ask_price","bid_price","bid_amount"]
[1727048711334,6.8935,145.07,145.04,0.0632654]
[1727048714255,6.8937,145.06,145.04,0.0632654]
[1727048714831,6.8941,145.05,145.04,0.0632654]
[1727048715248,14.26039452,145.13,145.04,0.0632654]
[1727048715249,17.2276,145.12,145.04,0.0632654]
[1727048715457,17.2276,145.12,145.05,23.776884]
[1727048716337,6.8927,145.08,145.05,23.776884]
[1727048717862,23.91498268,145.13,145.06,1.37865293]
[1727048718032,6.8921,145.1,145.07,23.776884]
[1727048718240,41.14138268,145.13,145.06,6.561]
[1727048719138,6.8927,145.08,145.06,6.561]
[1727048720060,6.8923,145.09,145.06,6.561]
[1727048720555,6.8918,145.1,145.06,6.561]
[1727048720763,6.8918,145.1,145.07,23.776884]
[1727048722761,30.80538268,145.13,145.09,6.8921]
[1727048722954,23.91498268,145.13,145.1,23.776884]
[1727048723542,6.8903,145.14,145.1,23.776884]
[1727048723742,6.8904,145.13,145.1,23.776884]
[1727048724263,24.2679295,145.16,145.09,23.776884]
[1727048724637,6.8914,145.11,145.08,23.776884]
[1727048726665,32.66025008,145.16,145.07,41.009084]
[1727048726971,6.89,145.14,145.1,23.776884]
[1727048727272,15.43725008,145.16,145.12,23.776884]
[1727048727572,22.32655008,145.16,145.12,23.776884]
[1727048727758,22.32655008,145.16,145.12,30.337884]
[1727048727966,6.8894,145.15,145.12,30.337884]
[1727048732965,6.8894,145.15,145.12,31.11090708]
[1727048733888,6.8894,145.15,145.12,30.337884]
[1727048739180,7.1479672,145.17,145.14,23.776884]
[1727048739377,0.2593672,145.17,145.16,30.665784]
[1727048739778,0.2593672,145.17,145.16,23.776884]
[1727048740488,0.2593672,145.17,145.12,6.561]
[1727048740699,6.8895,145.15,145.12,6.561]
[1727048742303,6.8895,145.15,145.13,23.776884]
[1727048744170,0.2593672,145.17,145.13,23.776884]
[1727048744375,0.2593672,145.17,145.13,24.45199479]
[1727048744979,6.8889,145.16,145.13,23.776884]
[1727048745179,0.2593672,145.17,145.13,23.776884]
[1727048745180,6.8895,145.15,145.13,23.776884]
[1727048746082,0.2593672,145.17,145.09,15.1896]
[1727048746290,0.2593672,145.17,145.1,23.776884]
[1727048746291,6.89,145.14,145.1,23.776884]
[1727048748579,0.25098,145.16,145.08,6.1226]
[1727048748782,6.8916,145.11,145.08,6.1226]
[1727048750302,6.8916,145.11,145.09,23.776884]
[1727048750976,6.8909,145.12,145.09,23.776884]
[1727048752082,6.8904,145.13,145.09,23.776884]
[1727048752284,0.2593672,145.17,145.09,23.776884]
[1727048752498,0.2593672,145.17,145.1,17.229]
[1727048752711,6.8895,145.15,145.11,30.667984]
[1727048753681,6.8895,145.15,145.11,23.776884]
[1727048754284,6.8899,145.14,145.11,23.776884]
[1727048754680,0.2593672,145.17,145.11,23.776884]
[1727048754889,6.8913,145.12,145.08,6.1226]
[1727048755097,6.8914,145.11,145.08,6.1226]
[1727048756187,6.8914,145.11,145.09,23.776884]
[1727048756782,6.8918,145.1,145.08,6.1226]
[1727048756987,15.9022,145.15,145.05,21.6247]
[1727048756988,6.8928,145.08,145.05,21.6247]
[1727048757201,6.8923,145.09,145.05,6.2969]
[1727048757589,6.8929,145.08,145.05,6.2969]
[1727048758301,6.8934,145.07,145.05,6.2969]
[1727048758704,6.8934,145.07,145.06,23.776884]
[1727048759384,6.8927,145.08,145.06,23.776884]
[1727048760009,6.8923,145.09,145.06,23.776884]
[1727048760989,0.25098,145.11,145.05,6.2969]
[1727048761317,6.8938,145.06,145.04,0.0632654]
[1727048761605,0.25098,145.11,145.04,0.0632654]
[1727048761914,17.2281,145.12,145.04,0.0632654]
[1727048761915,6.8922,145.09,145.04,6.9577654]
[1727048762409,0.25098,145.14,145.05,10.33713373]
[1727048762634,6.8914,145.11,145.06,30.670084]
[1727048762806,6.8918,145.1,145.06,30.670084]
[1727048763135,6.8918,145.1,145.06,23.776884]
[1727048763426,6.8931,145.08,145.05,23.776884]
[1727048763849,6.8931,145.08,145.04,23.8401494]
[1727048764212,6.8933,145.07,145.04,23.8401494]
[1727048764704,6.8928,145.08,145.04,0.0632654]
[1727048765634,6.8932,145.07,145.04,0.0632654]
[1727048766222,6.8932,145.07,145.04,23.8401494]
[1727048766419,6.8927,145.09,145.05,0.41071374]
[1727048767124,6.8927,145.09,145.04,30.7344494]
[1727048767827,0.25098,145.12,145.04,0.0632654]
[1727048768223,6.8933,145.07,145.04,0.0632654]
[1727048768532,0.25098,145.12,145.04,0.0632654]
[1727048768533,6.8938,145.06,145.04,0.0632654]
[1727048769102,6.8941,145.05,145.04,0.0632654]
[1727048773418,6.8938,145.06,145.04,0.0632654]
[1727048774346,6.8941,145.05,145.04,0.0632654]
[1727048777916,15.1839,145.09,145.04,0.0632654]
[1727048778233,6.8928,145.08,145.04,6.9577654]
[1727048778928,6.8928,145.08,145.04,0.0632654]
[1727048779942,32.4102,145.13,145.06,23.776884]
[1727048780124,6.8913,145.11,145.07,1.37849659]
[1727048780435,6.8913,145.11,145.06,30.670484]
[1727048780645,6.8918,145.1,145.06,30.670484]
[1727048781229,6.8918,145.1,145.06,31.15200821]
[1727048781945,6.8918,145.1,145.06,30.670484]
[1727048784830,51.669,145.16,145.08,23.776884]
[1727048785240,6.8917,145.11,145.07,23.776884]
[1727048786132,6.8924,145.09,145.06,23.776884]
[1727048786435,6.8918,145.1,145.06,30.670484]
[1727048787222,6.8918,145.1,145.06,23.776884]
[1727048787419,6.8924,145.09,145.06,23.776884]
[1727048788632,6.8918,145.1,145.06,30.670384]
[1727048789153,6.8918,145.1,145.06,23.776884]
[1727048790054,6.8918,145.1,145.06,30.670384]
[1727048796959,6.8913,145.11,145.07,6.8931]
[1727048797332,6.8913,145.11,145.08,23.776884]
[1727048797750,6.8918,145.1,145.07,23.776884]
[1727048798068,18.3887336,145.15,145.07,41.009584]
[1727048798358,6.8902,145.14,145.09,23.776884]
[1727048798532,6.8902,145.14,145.11,23.776884]
[1727048799538,6.8902,145.14,145.1,23.776884]
[1727048800949,18.2632436,145.15,145.1,30.668284]
[1727048800950,25.1527436,145.15,145.1,30.668284]
[1727048801134,18.2632436,145.15,145.13,23.776884]
[1727048801555,0.2593672,145.17,145.15,23.776884]
[1727048802058,7.1478672,145.17,145.14,23.776884]
[1727048802657,0.2593672,145.17,145.14,23.776884]
[1727048803436,0.2593672,145.17,145.15,6.8894]
[1727048803642,0.2593672,145.17,145.16,25.15232652]
[1727048803885,0.2593672,145.17,145.16,23.776884]
[1727048804065,0.2593672,145.17,145.13,6.0937]
[1727048804252,6.8898,145.14,145.1,40.6398]
[1727048804569,6.8894,145.15,145.1,40.6398]
[1727048805862,6.8894,145.15,145.11,23.776884]
[1727048806855,0.2593672,145.17,145.11,23.776884]
[1727048807059,0.25098,145.16,145.09,6.0937]
[1727048807266,6.8917,145.11,145.07,17.2325]
[1727048808045,6.8917,145.11,145.08,0.95961033]
[1727048808260,6.8909,145.12,145.08,0.95961033]
[1727048808657,6.8909,145.12,145.07,24.1255]
[1727048808855,6.8909,145.12,145.09,23.776884]
[1727048809055,6.8909,145.12,145.07,24.1255]
[1727048809056,6.8914,145.11,145.08,23.776884]
[1727048811273,6.8909,145.12,145.08,23.776884]
[1727048816452,6.8903,145.14,145.09,6.8918]
[1727048816753,6.8903,145.14,145.1,23.776884]
[1727048818876,6.8905,145.13,145.1,23.776884]
[1727048819374,6.8922,145.09,145.08,23.776884]
[1727048819565,17.2245,145.15,145.07,23.776884]
[1727048819762,32.7861,145.15,145.07,23.776884]
[1727048819960,6.8921,145.1,145.07,23.776884]
[1727048820272,6.8914,145.11,145.07,23.776884]
[1727048820671,6.8914,145.11,145.06,23.4124]
[1727048821065,6.894,145.06,145.04,0.0632654]
[1727048821270,6.8941,145.05,145.04,0.0632654]
[1727048823890,6.8937,145.06,145.04,0.0632654]
[1727048824679,6.8932,145.07,145.04,23.8401494]
[1727048824863,33.2973,145.13,145.05,1.37873567]
[1727048825174,6.8922,145.1,145.06,23.776884]
[1727048826884,6.8926,145.09,145.06,23.776884]
[1727048827066,33.2973,145.13,145.05,23.776884]
[1727048828366,6.8922,145.1,145.05,30.670484]
[1727048829182,6.8923,145.09,145.05,30.670484]
[1727048830283,6.8923,145.09,145.05,23.776884]
[1727048833689,6.8928,145.08,145.05,23.776884]
[1727048837665,6.8924,145.09,145.05,23.776884]
[1727048840404,6.8927,145.08,145.05,23.776884]
[1727048848207,6.8923,145.09,145.07,23.776884]
[1727048850707,6.8927,145.08,145.07,23.776884]
[1727048851201,6.8933,145.07,145.04,23.8401494]
[1727048851396,6.8939,145.06,145.04,0.0632654]
[1727048851587,0.25098,145.1,145.04,0.0632654]
[1727048852200,6.8941,145.05,145.04,0.0632654]
[1727048854293,6.8956,145.02,145.01,0.3509248]
[1727048857292,6.8975,144.98,144.97,0.2593672]
[1727048858710,6.8969,145.0,144.97,0.2593672]
[1727048859103,6.8975,144.98,144.97,0.2593672]
[1727048864620,6.8971,144.99,144.97,0.2593672]
[1727048866605,6.8975,144.98,144.97,0.2593672]
[1727048880833,6.8971,144.99,144.97,0.2593672]
[1727048881128,6.8975,144.98,144.97,0.2593672]
[1727048881506,6.8984,144.96,144.95,0.0632654]
[1727048882411,7.14938,144.96,144.95,0.0632654]
[1727048883220,6.8984,144.96,144.95,0.0632654]
[1727048885037,7.14938,144.96,144.95,0.0632654]
[1727048885331,7.14938,144.96,144.92,0.3509248]
[1727048885332,6.8998,144.93,144.92,0.3509248]
[1727048886423,7.15078,144.93,144.92,0.3509248]
[1727048887233,6.9013,144.9,144.89,0.2593672]
[1727048888620,7.15228,144.9,144.89,0.2593672]
[1727048890036,6.9013,144.9,144.89,0.2593672]
[1727048890434,7.15228,144.9,144.89,0.2593672]
[1727048892058,6.9027,144.87,144.86,0.0632654]
[1727048893250,13.79059127,144.9,144.84,0.0915576]
[1727048893251,6.9037,144.85,144.84,0.0915576]
[1727048893546,6.9037,144.85,144.84,0.2360575]
[1727048898852,6.9032,144.86,144.84,0.2360575]
[1727048899184,6.9031,144.87,144.84,0.2360575]
[1727048899647,6.9033,144.86,144.84,0.2360575]
[1727048905350,6.9022,144.88,144.84,7.1401575]
[1727048905532,6.9022,144.88,144.84,0.2360575]
[1727048907026,6.9022,144.88,144.84,7.1400575]
[1727048907228,6.9022,144.88,144.84,0.2360575]
[1727048908634,6.9028,144.87,144.84,0.2360575]
[1727048909856,6.9028,144.87,144.83,47.6785415]
[1727048910044,6.9033,144.86,144.83,23.5129415]
[1727048910242,6.9033,144.86,144.82,22.7461797]
[1727048912242,6.9033,144.86,144.82,15.8411797]
[1727048916959,6.9046,144.83,144.82,0.2855797]
[1727048918045,6.9042,144.84,144.82,0.2855797]
[1727048919553,6.9046,144.83,144.82,0.2855797]
[1727048923661,17.2569,144.87,144.82,0.2855797]
[1727048923988,6.9041,144.85,144.82,0.2855797]
[1727048924156,6.9042,144.84,144.82,0.2855797]
[1727048926071,6.9028,144.87,144.83,32.06221627]
[1727048927978,6.9028,144.87,144.83,23.776884]
[1727048929172,6.9041,144.84,144.82,6.4838797]
[1727048929967,6.9046,144.83,144.82,6.4838797]
[1727048930172,6.9046,144.83,144.82,0.2855797]
[1727048932062,6.9042,144.84,144.82,0.2855797]
[1727048933171,28.18959147,144.88,144.82,0.2855797]
[1727048933863,28.18959147,144.88,144.83,23.776884]
[1727048934379,28.18959147,144.88,144.82,0.2855797]
[1727048934678,6.9037,144.85,144.82,0.2855797]
[1727048935750,6.9033,144.86,144.82,0.2855797]
[1727048937760,6.9039,144.85,144.82,0.2855797]
[1727048939761,6.9032,144.86,144.82,7.1905797]
[1727048939974,10.93359147,144.88,144.84,23.776884]
[1727048940274,33.0063,144.91,144.84,23.776884]
[1727048941262,6.9023,144.88,144.84,30.680684]
[1727048941961,33.0063,144.91,144.84,30.680684]
[1727048941962,6.903,144.87,144.84,23.776884]
[1727048942461,6.903,144.87,144.84,25.15744645]
[1727048942960,6.9032,144.86,144.83,21.4296]
[1727048945259,33.0063,144.91,144.84,23.776884]
[1727048945473,6.902,144.89,144.86,23.776884]
[1727048946182,17.2494,144.94,144.86,17.2577]
[1727048946365,15.7009,144.95,144.91,23.776884]
[1727048946366,6.899,144.95,144.91,23.776884]
[1727048946572,6.8994,144.94,144.89,46.494884]
[1727048947860,0.25098,144.96,144.89,39.593184]
[1727048948075,6.9013,144.9,144.88,6.0867]
[1727048948265,6.9013,144.9,144.85,17.2589]
[1727048948266,6.9018,144.89,144.86,23.776884]
[1727048948466,6.9026,144.88,144.84,21.903]
[1727048948674,17.2505,144.93,144.84,21.903]
[1727048948675,6.9028,144.87,144.84,21.903]
[1727048949071,32.9514,144.93,144.85,0.61696655]
[1727048949072,6.9023,144.88,144.85,0.61696655]
[1727048949382,6.9016,144.9,144.85,6.9035]
[1727048949564,32.9514,144.93,144.85,6.9035]
[1727048949763,32.9514,144.93,144.86,23.776884]
[1727048949977,0.25098,144.92,144.85,23.776884]
[1727048950180,6.9024,144.88,144.85,23.776884]
[1727048950779,6.9032,144.86,144.85,23.776884]
[1727048950977,17.2529,144.91,144.85,23.776884]
[1727048951189,6.9028,144.87,144.85,23.776884]
[1727048951689,6.9028,144.87,144.84,21.903]
[1727048951690,6.9028,144.87,144.84,6.0867]
[1727048952271,6.9032,144.86,144.84,6.0867]
[1727048953166,6.9032,144.86,144.82,24.0624637]
[1727048954172,6.9032,144.86,144.83,1.26195441]
[1727048954374,6.9032,144.86,144.82,30.9675637]
[1727048954790,0.25098,144.92,144.82,30.9675637]
[1727048954791,0.25098,144.88,144.82,0.1913944]
[1727048955987,17.2556,144.89,144.82,0.1913944]
[1727048956187,6.9035,144.86,144.82,0.1913944]
[1727048958091,6.9037,144.85,144.82,0.1913944]
[1727048958392,6.9037,144.85,144.82,0.7404377]
[1727048959395,6.9037,144.85,144.82,1.57216234]
[1727048959798,6.9037,144.85,144.82,0.1913944]
[1727048961392,6.9037,144.85,144.82,1.56980282]
[1727048961890,61.38306648,144.93,144.82,7.0963944]
[1727048961891,6.9028,144.87,144.82,7.0963944]
[1727048962264,6.9034,144.86,144.83,23.776884]
[1727048964695,6.9037,144.85,144.82,23.9682784]
[1727048965798,6.9046,144.83,144.82,0.1913944]
[1727048966002,6.9042,144.84,144.82,0.1913944]
[1727048970475,6.9046,144.83,144.82,0.1913944]
[1727048972200,6.9042,144.84,144.82,0.1913944]
[1727048973983,17.256,144.88,144.82,0.1913944]
[1727048974186,6.9031,144.87,144.83,0.58813709]
[1727048974485,6.9031,144.87,144.82,7.0960944]
[1727048974903,6.9032,144.86,144.82,7.0960944]
[1727048975574,6.9028,144.87,144.83,25.15760575]
[1727048975881,6.9028,144.87,144.83,23.776884]
[1727048976407,6.9034,144.86,144.83,23.776884]
[1727048976604,6.9034,144.86,144.82,23.9682784]
[1727048976907,6.9038,144.85,144.82,23.9682784]
[1727048978691,6.9033,144.86,144.82,23.9682784]
[1727048979404,6.9033,144.86,144.83,1.38071932]
[1727048979806,6.9033,144.86,144.82,23.9682784]
[1727048980604,6.9036,144.85,144.82,23.9682784]
[1727048988804,6.9043,144.84,144.82,0.1913944]
[1727048989806,6.9037,144.85,144.82,1.57228822]
[1727048990017,6.9037,144.85,144.82,0.1913944]
[1727048990490,6.903,144.87,144.82,7.0961944]
[1727048990811,6.903,144.87,144.83,23.776884]
[1727048991526,6.9032,144.86,144.83,23.776884]
[1727048991893,6.9032,144.86,144.82,17.4538944]
[1727048993294,6.9037,144.85,144.82,17.4538944]
[1727048993496,6.9037,144.85,144.82,23.9682784]
[1727048993808,17.2548,144.89,144.82,0.1913944]
[1727048995400,6.9037,144.85,144.82,0.1913944]
[1727048996719,6.9037,144.85,144.82,1.57217099]
[1727048997320,6.9037,144.85,144.82,0.1913944]
[1727049001405,6.9041,144.84,144.82,0.1913944]
[1727049001606,6.9032,144.86,144.82,8.45882198]
[1727049001812,6.9032,144.86,144.82,7.0963944]
[1727049002121,6.9032,144.86,144.82,0.1913944]
[1727049002292,6.9038,144.85,144.82,0.1913944]
[1727049002892,6.9032,144.86,144.82,7.0963944]
[1727049003097,6.9042,144.84,144.82,0.1913944]
[1727049003922,6.9046,144.83,144.82,0.1913944]
[1727049004131,6.9056,144.81,144.8,0.2561177]
[1727049005212,6.9056,144.81,144.77,0.0632654]
[1727049005213,6.907,144.78,144.77,0.0632654]
[1727049007399,16.6175,144.88,144.79,6.9063]
[1727049007621,6.9038,144.85,144.79,6.9063]
[1727049007822,6.9033,144.86,144.8,8.28677239]
[1727049008201,6.9033,144.86,144.81,6.9055]
[1727049008400,17.2547,144.89,144.79,17.2655]
[1727049008622,6.9047,144.83,144.79,24.1719]
[1727049009723,6.904,144.85,144.8,8.22929305]
[1727049009926,17.2547,144.89,144.82,6.905]
[1727049009927,6.9032,144.86,144.82,6.905]
[1727049010108,17.2547,144.89,144.8,23.776884]
[1727049010302,6.9042,144.84,144.8,1.32196065]
[1727049010703,6.9042,144.84,144.79,24.172]
[1727049010923,6.9042,144.84,144.8,1.38102925]
[1727049011332,6.9042,144.84,144.79,24.172]
[1727049011522,0.25098,144.88,144.8,23.776884]
[1727049011831,17.2547,144.89,144.81,8.28603608]
[1727049011832,6.9032,144.86,144.81,8.28603608]
[1727049012320,16.8736177,144.91,144.82,15.6696]
[1727049012528,16.8736177,144.91,144.83,31.19568948]
[1727049012700,6.9013,144.9,144.85,6.9035]
[1727049012905,6.9013,144.9,144.85,8.2840618]
[1727049013507,7.1570177,144.91,144.86,30.679884]
[1727049019511,7.1570177,144.91,144.86,32.06030066]
[1727049021141,7.1570177,144.91,144.9,6.9013]
[1727049021142,0.2561177,144.91,144.9,6.9013]
[1727049021320,0.2561177,144.91,144.9,32.05818601]
[1727049022038,0.2561177,144.91,144.9,30.678184]
[1727049022615,0.2561177,144.91,144.9,32.05812245]
[1727049025537,0.2561177,144.91,144.9,30.678184]
[1727049026224,0.2561177,144.91,144.9,32.05793477]
[1727049029241,0.2561177,144.91,144.9,30.678184]
[1727049029436,0.2561177,144.91,144.9,32.1834239]
[1727049030657,0.2561177,144.91,144.9,32.3089139]
[1727049031843,0.2561177,144.91,144.9,52.30871928]
[1727049032024,0.2561177,144.91,144.9,50.929164]
[1727049034329,0.2561177,144.91,144.9,59.89492747]
[1727049038143,0.2561177,144.91,144.9,50.803674]
[1727049038442,0.2561177,144.91,144.9,59.76943747]
[1727049038627,0.2561177,144.91,144.9,35.99255347]
[1727049039044,0.2561177,144.91,144.9,35.86706347]
[1727049040342,0.2561177,144.91,144.9,59.64394747]
[1727049040818,0.2561177,144.91,144.9,30.678184]
[1727049043324,0.2561177,144.91,144.89,17.2535]
[1727049044030,0.2561177,144.91,144.88,6.9017]
[1727049044240,7.1570177,144.91,144.87,6.9026]
[1727049044739,0.2561177,144.91,144.88,23.776884]
[1727049045133,0.2561177,144.91,144.87,23.776884]
[1727049045523,0.2561177,144.95,144.87,23.776884]
[1727049046351,0.2561177,144.95,144.9,23.776884]
[1727049047226,6.9,144.93,144.9,23.776884]
[1727049052936,6.9005,144.92,144.89,23.776884]
[1727049055856,6.9,144.93,144.89,23.776884]
[1727049056067,0.2561177,144.95,144.89,23.776884]
[1727049056244,0.2561177,144.95,144.89,30.678484]
[1727049056565,6.9,144.93,144.89,30.678484]
[1727049059347,0.2561177,144.95,144.89,23.776884]
[1727049059547,6.9007,144.92,144.89,23.776884]
[1727049060158,6.9007,144.92,144.88,17.2549]
[1727049060530,0.25098,144.94,144.85,23.4403]
[1727049060753,6.9013,144.9,144.86,6.9029]
[1727049062362,0.25098,144.94,144.84,15.662]
[1727049062363,6.9026,144.88,144.84,15.662]
[1727049062548,6.9027,144.87,144.82,17.2619]
[1727049062867,6.9023,144.88,144.84,6.904]
[1727049066463,6.9028,144.87,144.83,6.9045]
[1727049067051,6.9019,144.89,144.85,6.9035]
[1727049067256,6.9014,144.9,144.85,6.9035]
[1727049067768,6.9009,144.91,144.87,30.679484]
[1727049067961,0.2561177,144.95,144.89,23.776884]
[1727049068139,6.8995,144.94,144.9,1.38005955]
[1727049068459,6.8995,144.94,144.89,30.678284]
[1727049068967,6.8995,144.94,144.9,1.38000819]
[1727049069161,7.1550177,144.95,144.91,23.776884]
[1727049070157,0.2561177,144.95,144.91,30.677584]
[1727049070381,0.2561177,144.95,144.92,1.37984446]
[1727049070552,0.2561177,144.95,144.93,30.676284]
[1727049070754,0.2561177,144.95,144.94,32.05588998]
[1727049071572,0.2561177,144.95,144.94,23.776884]
[1727049079488,0.2561177,144.95,144.94,25.156501]
[1727049084281,0.2561177,144.95,144.94,41.14899993]
[1727049084487,0.2561177,144.95,144.94,39.78276646]
[1727049085481,0.2561177,144.95,144.94,39.65727646]
[1727049085677,0.2561177,144.95,144.94,30.676284]
[1727049087688,0.2561177,144.95,144.94,51.34106405]
[1727049088481,0.2561177,144.95,144.94,50.927264]
[1727049091164,0.2561177,144.99,144.98,48.169064]
[1727049091363,0.2561177,144.99,144.98,83.31695646]
[1727049091574,0.3476753,145.05,145.04,30.671484]
[1727049091981,0.3476753,145.05,145.04,32.04994029]
[1727049092987,0.3476753,145.05,145.04,32.17543029]
[1727049094102,0.3476753,145.05,145.04,30.796974]
[1727049094691,0.3476753,145.05,145.04,31.74651731]
[1727049095003,0.3476753,145.05,145.04,38.07581731]
[1727049095312,0.3476753,145.05,145.04,38.50460482]
[1727049096798,0.3476753,145.05,145.04,87.96068859]
[1727049097005,0.3193831,145.08,145.04,87.96068859]
[1727049097006,0.3193831,145.08,145.07,24.1262]
[1727049097175,0.3193831,145.08,145.07,83.52276385]
[1727049097601,0.3193831,145.08,145.07,68.028574]
[1727049098787,0.3193831,145.08,145.04,17.2362]
[1727049099797,0.3193831,145.08,145.05,6.894]
[1727049100109,0.3193831,145.08,145.04,17.2362]
[1727049100280,0.3193831,145.08,145.05,23.776884]
[1727049101883,0.3193831,145.08,145.05,30.670884]
[1727049102298,0.3193831,145.08,145.05,23.776884]
[1727049102691,0.3193831,145.08,145.07,30.670084]
[1727049103004,0.3193831,145.08,145.07,23.776884]
[1727049103194,0.3193831,145.08,145.07,30.670084]
[1727049106288,0.3193831,145.08,145.07,23.776884]
[1727049107570,0.3193831,145.08,145.04,6.8941]
[1727049107787,0.3193831,145.08,145.02,6.8954]
[1727049107788,6.8933,145.07,145.02,6.8954]
[1727049108006,6.8933,145.07,145.03,6.895]
[1727049109415,6.8938,145.06,145.02,24.1339]
[1727049109700,6.8932,145.07,145.02,24.1339]
[1727049109891,6.8932,145.07,145.03,6.8949]
[1727049110096,0.3193831,145.08,145.02,17.2385]
[1727049110291,0.3193831,145.08,145.04,17.236]
[1727049110491,0.3193831,145.08,145.07,6.8932]
[1727049110709,0.3193831,145.08,145.07,32.04826441]
[1727049111681,0.3193831,145.08,145.07,30.670084]
[1727049116221,0.3193831,145.08,145.07,23.776884]
[1727049120388,0.3193831,145.08,145.04,23.776884]
[1727049120596,0.3193831,145.08,145.01,6.3293]
[1727049120597,6.8933,145.07,145.02,6.8952]
[1727049120798,6.8933,145.07,145.01,6.3293]
[1727049120799,6.8933,145.07,145.03,6.895]
[1727049121606,0.3193831,145.08,145.05,6.8938]
[1727049121812,0.3193831,145.08,145.06,23.776884]
[1727049127590,7.2121831,145.08,145.05,23.776884]
[1727049128287,0.3193831,145.08,145.05,30.670784]
[1727049130227,0.3193831,145.08,145.07,39.62441372]
[1727049131094,0.3193831,145.08,145.07,40.17230893]
[1727049131305,0.3193831,145.08,145.07,61.12796556]
[1727049132420,0.3193831,145.08,145.07,50.670084]
[1727049132713,0.3193831,145.08,145.07,30.670084]
[1727049133014,6.8944,145.05,145.01,6.896]
[1727049133212,16.3161831,145.08,145.0,24.1374]
[1727049133213,6.8946,145.04,145.0,24.1374]
[1727049133530,6.8946,145.04,145.0,17.2409]
[1727049133888,0.12549,145.07,144.97,17.2448]
[1727049134398,0.25098,145.07,144.98,6.8974]
[1727049134909,6.8951,145.03,144.98,6.8974]
[1727049135709,6.8951,145.03,144.99,23.776884]
[1727049137199,6.8946,145.04,144.99,30.673784]
[1727049137396,16.3161831,145.08,145.01,23.776884]
[1727049137610,23.2092831,145.08,145.03,6.895]
[1727049137814,23.2092831,145.08,145.04,23.776884]
[1727049140218,0.3193831,145.08,145.03,23.776884]
[1727049140428,0.3193831,145.08,145.06,23.776884]
[1727049140922,0.3193831,145.08,145.07,23.776884]
[1727049141813,0.3193831,145.08,145.06,23.776884]
[1727049142712,0.3193831,145.08,145.05,23.776884]
[1727049143118,6.8933,145.07,145.05,23.776884]
[1727049143511,6.8936,145.06,145.05,23.776884]
[1727049144026,6.8933,145.07,145.05,23.776884]
[1727049144407,0.3193831,145.08,145.05,23.776884]
[1727049144706,0.3193831,145.08,145.06,23.776884]
[1727049146508,0.3193831,145.08,145.06,30.670484]
[1727049146808,0.3193831,145.08,145.07,25.15526773]
[1727049147223,0.3193831,145.08,145.07,32.04843074]
[1727049147527,0.3193831,145.08,145.07,30.795574]
[1727049148636,0.3193831,145.08,145.07,23.776884]
[1727049150027,0.3193831,145.08,145.06,23.776884]
[1727049156118,0.3193831,145.08,145.07,30.670084]
[1727049160423,0.3193831,145.08,145.07,32.04827444]
[1727049160629,0.3193831,145.08,145.07,30.921064]
[1727049160816,0.3193831,145.08,145.07,30.795574]
[1727049161520,0.3193831,145.08,145.07,30.670084]
[1727049167442,0.3193831,145.08,145.07,23.776884]
[1727049167642,15.9777831,145.08,144.98,21.5754]
[1727049167830,15.9777831,145.08,144.99,17.2419]
[1727049168229,33.2101831,145.08,144.99,17.2419]
[1727049168447,6.8951,145.03,144.99,17.2419]
[1727049168735,33.2101831,145.08,144.99,17.2419]
[1727049169117,6.8949,145.04,144.99,24.1385]
[1727049170347,6.8949,145.04,145.0,23.776884]
[1727049173551,6.894,145.06,145.0,23.776884]
[1727049173731,6.8942,145.05,145.02,23.776884]
[1727049175727,6.8942,145.05,145.01,23.776884]
[1727049175925,6.8948,145.04,145.01,23.776884]
[1727049176327,15.9777831,145.08,144.91,41.413]
[1727049176328,23.97839,145.07,145.0,23.776884]
[1727049176658,6.896,145.01,144.97,6.8978]
[1727049177636,6.8956,145.02,144.97,6.8978]
[1727049178021,6.8956,145.02,144.98,23.776884]
[1727049179065,6.8956,145.02,144.98,6.8974]
[1727049179359,6.8956,145.02,144.99,23.776884]
[1727049180554,6.897,144.99,144.96,7.15903429]
[1727049180759,6.897,144.99,144.94,6.8994]